bitfinex/quotes_ETHUSD_20250511
["timestamp","ask_amount","ask_price","bid_price","bid_amount"]
[1746964806396,10.05,2530.9,2530.3,1.13603173]
[1746964806569,10.05,2530.9,2530.4,0.7788]
[1746964806764,3.95139527,2530.8,2530.4,0.7788]
[1746964807191,14.00122835,2530.9,2530.4,0.7788]
[1746964807413,3.95133481,2530.8,2530.4,0.7788]
[1746964807829,14.00128025,2530.9,2530.4,0.7788]
[1746964808720,10.05,2530.9,2530.4,0.7788]
[1746964809223,14.00117181,2530.9,2530.4,0.7788]
[1746964809722,10.05,2530.9,2530.4,0.7788]
[1746964809924,14.00121155,2530.9,2530.4,0.7788]
[1746964810119,3.95135782,2530.8,2530.4,0.7788]
[1746964810319,14.00122561,2530.9,2530.4,0.7788]
[1746964811827,3.9513464,2530.8,2530.4,0.7788]
[1746964812012,14.00123144,2530.9,2530.4,0.7788]
[1746964812321,3.95053924,2531.3,2530.4,0.35328]
[1746964812528,3.95038318,2531.4,2530.5,0.80981764]
[1746964812700,3.95156518,2530.7,2530.5,0.7703]
[1746964812900,0.39515652,2530.6,2530.5,0.7703]
[1746964813096,3.95156518,2530.7,2530.5,0.7703]
[1746964813297,3.95127951,2530.9,2530.5,0.7703]
[1746964814423,3.95121563,2530.9,2530.5,0.7703]
[1746964814726,8.7922,2531.4,2530.5,0.7703]
[1746964814914,10.05,2531.3,2530.5,8.7703]
[1746964815519,3.95138716,2530.8,2530.5,3.5243]
[1746964815722,3.95138716,2530.8,2530.5,0.7703]
[1746964816027,3.95190455,2530.5,2530.2,2.754]
[1746964816425,3.95228199,2530.2,2529.8,0.8004]
[1746964816631,0.3952282,2530.1,2529.8,0.8004]
[1746964816943,3.9527254,2529.9,2529.5,0.8004]
[1746964817299,7.47447494,2530.2,2529.5,0.8004]
[1746964817501,18.05,2530.1,2529.0,0.8004]
[1746964818050,10.05,2530.0,2529.1,0.039539]
[1746964818205,10.05,2530.0,2529.2,0.7605]
[1746964818405,10.05,2530.0,2529.3,2.754]
[1746964818727,10.05,2530.0,2529.3,3.10545]
[1746964819724,10.05,2530.0,2529.5,0.7605]
[1746964820125,10.05,2530.0,2529.6,2.754]
[1746964820464,10.05,2530.5,2529.7,8.03952804]
[1746964820612,6.68206303,2531.0,2529.8,0.7605]
[1746964821544,3.95134972,2530.8,2529.8,0.7605]
[1746964821752,3.95187856,2530.5,2529.8,0.7605]
[1746964821917,3.95250203,2530.1,2529.8,0.7605]
[1746964822754,18.05,2530.4,2529.6,2.754]
[1746964822956,3.95276657,2529.9,2529.5,0.8239]
[1746964823119,3.95264056,2530.0,2529.5,0.8239]
[1746964823520,3.95272935,2529.9,2529.5,0.8239]
[1746964823760,3.95272935,2529.9,2528.8,2.731]
[1746964823761,10.8646,2530.0,2528.4,14.221]
[1746964823929,3.95363471,2529.4,2529.0,0.8239]
[1746964824424,6.6834029,2529.5,2529.0,0.8239]
[1746964824825,4.76821347,2529.4,2528.7,0.8239]
[1746964825015,10.8646,2529.4,2528.7,3.5549]
[1746964825219,3.95390724,2529.2,2528.7,3.5549]
[1746964825452,5.83112767,2529.2,2528.7,3.5549]
[1746964826351,10.8646,2529.4,2528.7,3.5549]
[1746964826541,10.05,2529.4,2528.7,3.5549]
[1746964827827,3.95391146,2529.2,2528.7,3.5549]
[1746964828566,10.05,2529.4,2528.7,2.731]
[1746964828751,2.731,2529.5,2528.8,0.84624613]
[1746964829057,2.731,2529.5,2528.8,1.20397074]
[1746964829757,2.731,2529.5,2528.9,0.8067]
[1746964829971,3.95308042,2529.7,2528.9,0.8067]
[1746964830141,6.68395291,2529.8,2528.9,0.8067]
[1746964830337,2.731,2529.8,2529.0,0.84623918]
[1746964830575,11.40956,2529.9,2529.0,0.84623918]
[1746964830757,10.05,2529.9,2529.0,0.84623918]
[1746964832654,13.08127857,2530.2,2529.0,0.84623918]
[1746964832855,3.95178818,2530.5,2529.2,0.8134]
[1746964833185,10.05,2530.4,2529.5,0.8134]
[1746964833360,14.0020214,2530.4,2529.5,0.8134]
[1746964833690,3.95281272,2529.9,2529.6,2.732]
[1746964833877,3.95296085,2529.8,2529.5,0.8134]
[1746964834076,3.4848,2530.2,2529.5,0.8134]
[1746964834279,3.9530145,2529.8,2529.5,0.8134]
[1746964834489,3.4848,2530.2,2528.9,0.8134]
[1746964834793,3.952758,2529.9,2529.3,0.8134]
[1746964835093,11.19848,2530.1,2529.3,0.85293675]
[1746964836272,10.05,2530.1,2529.3,0.85293675]
[1746964837989,8.0,2530.7,2529.4,0.8134]
[1746964838294,3.95199906,2530.4,2529.5,0.8134]
[1746964839094,3.95199906,2530.4,2529.7,0.8134]
[1746964839294,2.731,2530.6,2529.8,2.732]
[1746964839458,2.57807352,2530.6,2529.9,0.8134]
[1746964839655,3.95175629,2530.6,2529.9,0.8134]
[1746964840301,4.24795471,2530.7,2529.9,0.8134]
[1746964840494,3.95168064,2530.6,2529.9,0.8134]
[1746964840865,13.5328,2530.8,2529.9,0.8134]
[1746964841062,1.35328,2530.7,2529.9,0.8134]
[1746964841399,3.95197855,2530.4,2529.8,0.8134]
[1746964842494,3.9521295,2530.3,2529.8,0.8134]
[1746964842794,6.68192216,2530.5,2529.8,0.8134]
[1746964842997,6.68189426,2530.5,2529.8,0.8134]
[1746964843196,6.68189426,2530.5,2529.8,1.16794]
[1746964844093,3.95195832,2530.4,2529.8,1.16794]
[1746964844599,2.73,2530.5,2529.8,1.16794]
[1746964844795,6.6818447,2530.5,2529.8,1.16794]
[1746964845165,2.73,2530.5,2529.8,1.16794]
[1746964845365,6.68184121,2530.5,2529.8,1.16794]
[1746964845583,8.68052379,2530.5,2529.8,1.16794]
[1746964846099,3.95196262,2530.4,2529.8,1.16794]
[1746964846401,3.95217301,2530.3,2529.8,3.5444]
[1746964846801,4.72868258,2530.5,2529.8,3.5444]
[1746964846980,2.73,2530.5,2529.8,3.5444]
[1746964847400,6.68183723,2530.5,2529.8,3.5444]
[1746964847709,2.73,2530.5,2529.8,3.5444]
[1746964847875,6.68179343,2530.5,2529.8,3.5444]
[1746964848172,6.68179343,2530.5,2529.8,3.89884]
[1746964848370,2.73,2530.5,2529.8,3.89884]
[1746964848630,3.95165759,2530.6,2529.9,0.797]
[1746964848998,13.07232014,2530.8,2529.9,0.797]
[1746964848999,3.95183158,2530.5,2529.9,0.797]
[1746964849304,3.95169013,2530.6,2529.9,0.797]
[1746964849508,3.95169013,2530.6,2529.9,1.185244]
[1746964850012,3.95184075,2530.5,2529.9,1.185244]
[1746964850712,3.95169296,2530.6,2529.9,1.185244]
[1746964850912,3.95180834,2530.5,2529.9,1.185244]
[1746964851912,3.95169458,2530.6,2529.9,1.185244]
[1746964852821,10.34232014,2530.8,2529.9,1.185244]
[1746964853028,3.9517445,2530.6,2529.9,1.185244]
[1746964853326,3.9518122,2530.5,2529.9,1.185244]
[1746964853528,3.95202229,2530.4,2529.9,0.797]
[1746964854022,5.25873321,2530.7,2529.9,3.527]
[1746964854214,1.30723201,2530.7,2529.9,3.527]
[1746964854414,3.95190163,2530.5,2529.9,3.527]
[1746964854628,14.00190163,2530.5,2529.9,3.527]
[1746964854791,3.95212729,2530.3,2529.9,3.527]
[1746964854993,1.40019016,2530.4,2529.9,0.797]
[1746964855224,3.95238875,2530.2,2529.9,0.797]
[1746964855695,3.95246408,2530.1,2529.9,0.797]
[1746964856029,2.73,2530.2,2529.6,0.7887]
[1746964856218,3.14301902,2530.2,2529.6,0.7887]
[1746964856533,3.95242093,2530.1,2529.6,0.7887]
[1746964857022,3.95243008,2530.1,2529.6,0.7887]
[1746964857536,3.95241294,2530.1,2529.6,3.5187]
[1746964857691,7.09533468,2530.2,2529.6,3.5187]
[1746964857896,0.70953347,2530.1,2529.6,3.5187]
[1746964858207,4.66205507,2530.1,2529.6,3.5187]
[1746964858404,10.809,2530.5,2529.6,3.5187]
[1746964858607,14.00179136,2530.5,2529.8,0.7746]
[1746964858821,3.95194435,2530.4,2529.9,2.73]
[1746964859332,3.95210054,2530.3,2529.9,2.73]
[1746964859536,14.00185642,2530.5,2529.9,2.73]
[1746964859707,16.07020122,2530.5,2529.9,2.73]
[1746964860034,3.95211031,2530.3,2529.8,0.7746]
[1746964860206,3.95211031,2530.3,2529.8,3.5046]
[1746964860406,3.95227497,2530.2,2529.8,0.7746]
[1746964860604,12.1183448,2530.5,2529.8,0.7746]
[1746964860798,3.95249066,2530.1,2529.6,2.73]
[1746964860999,3.95220708,2530.3,2529.7,0.7746]
[1746964861215,3.95228955,2530.2,2529.7,0.7746]
[1746964861411,3.95215559,2530.3,2529.7,0.7746]
[1746964861609,3.95256022,2530.1,2529.7,0.7746]
[1746964862931,1.21183448,2530.4,2529.7,0.7746]
[1746964863100,3.95253087,2530.1,2529.7,0.7746]
[1746964864216,3.95228097,2530.2,2529.7,0.7746]
[1746964864536,3.95238413,2530.2,2529.7,0.7746]
[1746964865039,14.00238413,2530.2,2529.7,0.7746]
[1746964865520,3.95242824,2530.1,2529.7,0.7746]
[1746964865722,10.05,2530.2,2529.7,0.7746]
[1746964866027,11.60235238,2530.2,2529.7,0.7746]
[1746964866242,2.729,2530.1,2529.7,0.7746]
[1746964867159,6.68141294,2530.1,2529.7,0.7746]
[1746964867438,2.729,2530.1,2529.7,0.7746]
[1746964867634,6.68152159,2530.1,2529.7,0.7746]
[1746964867828,8.90512231,2530.1,2529.7,0.7746]
[1746964868306,4.95260072,2530.1,2529.7,0.7746]
[1746964869647,10.05,2530.2,2529.7,0.7746]
[1746964870818,3.95216365,2530.3,2529.7,0.7746]
[1746964871217,3.95228759,2530.2,2529.7,0.7746]
[1746964871460,3.95228759,2530.2,2529.8,2.73]
[1746964871812,3.95228759,2530.2,2529.7,0.7746]
[1746964871813,3.95210054,2530.3,2529.7,0.7746]
[1746964872119,0.47841005,2530.2,2529.7,0.7746]
[1746964872332,3.95249308,2530.1,2529.7,0.7746]
[1746964872528,4.43074207,2530.2,2529.7,0.7746]
[1746964872921,3.95244203,2530.1,2529.7,0.7746]
[1746964873161,10.05,2530.1,2528.2,6.15]
[1746964873461,3.95319418,2529.6,2528.6,0.7867]
[1746964873620,3.95457763,2528.8,2528.6,0.7867]
[1746964873825,3.95470733,2528.7,2528.3,0.7867]
[1746964874056,3.95451773,2528.8,2528.3,0.7867]
[1746964874268,2.729,2528.9,2528.3,0.7867]
[1746964874566,7.83440052,2528.9,2528.3,0.7867]
[1746964874726,3.88003,2528.9,2528.3,0.7867]
[1746964875272,1.15103,2528.9,2528.3,0.7867]
[1746964876187,3.95453999,2528.8,2528.3,0.7867]
[1746964876472,3.95460515,2528.7,2528.3,0.7867]
[1746964876876,3.95452119,2528.8,2528.3,0.7867]
[1746964877046,5.13340704,2528.8,2528.3,0.7867]
[1746964877243,3.95471342,2528.7,2528.3,0.7867]
[1746964877877,3.95460117,2528.7,2528.1,0.8139]
[1746964878206,3.95499449,2528.5,2528.1,0.8139]
[1746964878408,8.0,2528.4,2528.1,0.8139]
[1746964878552,8.0,2528.4,2527.8,0.8139]
[1746964878553,8.0,2527.9,2527.8,0.8139]
[1746964878756,8.0,2527.9,2527.4,2.731]
[1746964879060,8.0,2528.2,2527.5,0.8139]
[1746964879262,1.88394,2528.1,2527.5,0.8139]
[1746964879983,8.0,2528.2,2527.5,0.8139]
[1746964880362,8.0,2528.2,2527.5,0.85346096]
[1746964880698,8.0,2528.2,2527.5,0.8139]
[1746964881192,8.0,2528.2,2527.7,0.8139]
[1746964881559,10.05,2528.8,2527.9,0.8139]
[1746964881774,3.9540636,2529.1,2528.0,2.731]
[1746964881999,6.6830636,2529.1,2528.1,0.8139]
[1746964882172,8.0,2528.9,2528.1,0.8139]
[1746964882372,8.0,2529.0,2528.1,0.8139]
[1746964882611,1.46830307,2528.9,2528.1,0.85345206]
[1746964882797,6.68300097,2529.1,2528.1,0.85345206]
[1746964883137,8.0,2529.0,2528.1,0.8139]
[1746964883287,11.95419296,2529.0,2528.1,0.8139]
[1746964883493,8.0,2528.7,2528.1,0.8139]
[1746964883693,3.95483354,2528.6,2528.1,0.8139]
[1746964883924,1.19548335,2528.5,2528.1,0.8139]
[1746964884606,8.0,2528.7,2528.1,0.8139]
[1746964884792,12.72818535,2528.8,2528.1,0.8139]
[1746964885425,3.95463448,2528.7,2528.1,0.8139]
[1746964885621,11.95448105,2528.8,2528.1,0.8139]
[1746964885837,10.05,2528.7,2528.1,0.8139]
[1746964886042,10.05,2528.7,2528.1,0.39384626]
[1746964886339,3.95381938,2529.2,2528.2,0.7924]
[1746964886498,10.34108627,2529.3,2528.2,0.83194881]
[1746964886698,17.02383982,2529.3,2528.2,0.83194881]
[1746964887117,8.0,2529.2,2528.2,0.83194881]
[1746964887298,1.94387157,2529.1,2528.2,0.83194881]
[1746964887623,1.94387157,2529.1,2528.2,0.83194692]
[1746964887828,1.94387157,2529.1,2528.2,0.7924]
[1746964888126,10.34108627,2529.3,2528.2,0.7924]
[1746964888324,10.34108627,2529.3,2528.2,0.83194694]
[1746964888525,8.0,2529.2,2528.2,0.7924]
[1746964888749,10.34108627,2529.3,2528.3,0.03954615]
[1746964888941,10.34108627,2529.3,2528.4,0.7837]
[1746964889238,10.05,2529.3,2528.6,0.7837]
[1746964889402,10.05,2529.3,2528.1,0.35429]
[1746964889403,8.0,2529.6,2528.8,0.7837]
[1746964889608,8.0,2529.6,2529.0,0.7837]
[1746964889812,10.05,2529.7,2529.0,0.7837]
[1746964890021,8.0,2529.6,2529.0,0.7837]
[1746964893912,11.95328654,2529.6,2529.0,0.7837]
[1746964894111,2.20032865,2529.5,2529.0,0.7837]
[1746964894512,8.0,2529.3,2529.1,2.729]
[1746964894746,8.0,2529.3,2529.0,0.7837]
[1746964895640,11.95371949,2529.3,2529.0,0.7837]
[1746964896361,2.20032865,2529.5,2529.0,0.7837]
[1746964896544,9.02003286,2529.4,2529.0,0.7837]
[1746964896862,12.97355832,2529.4,2529.0,0.7837]
[1746964897153,9.02003286,2529.4,2529.0,0.7837]
[1746964898675,8.0,2529.4,2529.0,0.7837]
[1746964898979,8.0,2529.6,2529.0,0.7837]
[1746964899172,11.95320778,2529.6,2529.0,0.7837]
[1746964899534,11.95320778,2529.6,2529.1,2.729]
[1746964899935,3.95359294,2529.4,2529.0,0.7837]
[1746964900166,0.39535929,2529.3,2529.0,3.5127]
[1746964900770,11.9532145,2529.6,2529.0,0.7837]
[1746964900977,11.9532145,2529.6,2529.0,3.5127]
[1746964901345,3.95352691,2529.4,2529.0,3.5127]
[1746964901674,3.95352691,2529.4,2529.0,0.7837]
[1746964901977,3.95342988,2529.5,2529.0,0.7837]
[1746964902164,1.59066495,2529.4,2529.0,0.7837]
[1746964902359,5.5442265,2529.4,2529.0,0.7837]
[1746964902669,1.59066495,2529.4,2529.0,0.7837]
[1746964903667,3.95373047,2529.3,2529.0,0.7837]
[1746964903965,9.59066495,2529.4,2528.9,2.729]
[1746964904138,4.9128006,2529.3,2528.9,2.729]
[1746964904339,3.953893,2529.2,2528.8,0.821]
[1746964904553,3.953893,2529.2,2528.8,3.55]
[1746964904751,3.95374333,2529.3,2528.8,0.821]
[1746964904953,8.0,2529.2,2528.8,3.55]
[1746964905184,3.95383438,2529.2,2528.8,3.55]
[1746964905472,0.79074329,2529.2,2528.8,0.821]
[1746964905656,3.95406931,2529.1,2528.8,0.821]
[1746964906473,3.95442817,2528.9,2528.2,0.821]
[1746964906670,3.95442817,2528.9,2528.4,2.729]
[1746964907034,4.75433991,2529.3,2528.2,0.821]
[1746964907035,3.9546788,2528.7,2528.2,0.821]
[1746964907236,3.95532474,2528.3,2528.0,3.55]
[1746964907440,0.39553247,2528.3,2527.8,0.821]
[1746964907660,3.95530023,2528.3,2527.8,0.821]
[1746964907979,3.95538952,2528.2,2527.8,0.821]
[1746964908178,3.95564734,2528.1,2527.6,0.7819]
[1746964908388,3.95538327,2528.2,2527.6,3.5109]
[1746964908584,3.95556516,2528.1,2527.6,0.7819]
[1746964908793,3.95541006,2528.2,2527.6,0.7819]
[1746964908996,6.15600538,2528.2,2527.6,0.7819]
[1746964909916,2.20054101,2528.2,2527.6,0.7819]
[1746964910479,10.05,2528.3,2527.6,0.7819]
[1746964910677,14.00523085,2528.3,2527.6,0.7819]
[1746964910879,10.05,2528.3,2527.6,0.7819]
[1746964911379,10.05,2528.3,2527.6,0.82146125]
[1746964912811,10.05,2528.6,2527.6,0.82146125]
[1746964913119,20.52316965,2528.6,2527.8,0.7573]
[1746964913611,3.9550881,2528.4,2527.8,0.7573]
[1746964913908,3.95532187,2528.3,2527.8,0.7573]
[1746964914416,3.95522683,2528.3,2527.8,0.7573]
[1746964914815,3.95542031,2528.2,2527.8,0.7573]
[1746964915019,0.86882317,2528.2,2527.8,0.7573]
[1746964916412,4.82424163,2528.2,2527.8,0.7573]
[1746964916623,0.86882317,2528.2,2527.8,0.7573]
[1746964916785,4.73284993,2528.4,2527.8,0.7573]
[1746964917318,8.0,2528.5,2527.8,0.7573]
[1746964917689,7.95,2528.5,2527.8,0.7573]
[1746964918022,3.9550704,2528.4,2527.8,0.7573]
[1746964918598,3.95507215,2528.4,2527.8,0.7573]
[1746964918799,1.19050722,2528.3,2527.8,0.7573]
[1746964919588,3.95539304,2528.2,2527.8,0.7573]
[1746964919899,3.95556812,2528.1,2527.8,0.7573]
[1746964920090,3.95546851,2528.2,2527.8,0.7573]
[1746964920292,0.91012499,2528.1,2527.8,0.7573]
[1746964921118,4.86569964,2528.1,2527.8,0.7573]
[1746964921326,0.91012499,2528.1,2527.6,3.5536]
[1746964921633,3.95585268,2527.9,2527.1,0.8266]
[1746964921788,0.7606,2528.0,2527.2,2.727]
[1746964921986,8.0,2527.9,2527.3,0.8266]
[1746964923026,11.95502181,2528.5,2527.5,0.7997]
[1746964923320,14.68102181,2528.5,2527.5,0.7997]
[1746964923713,10.726,2528.5,2527.5,0.7997]
[1746964923911,2.726,2528.5,2527.5,0.83925933]
[1746964924491,6.68099102,2528.5,2527.5,0.7997]
[1746964924691,4.1649096,2528.5,2527.5,0.7997]
[1746964924896,2.726,2528.5,2527.5,0.7997]
[1746964925535,6.68094929,2528.5,2527.5,0.7997]
[1746964925846,3.95524754,2528.3,2527.6,2.727]
[1746964926130,6.68094929,2528.5,2527.5,0.7997]
[1746964926131,3.95545398,2528.2,2527.5,0.7997]
[1746964926316,3.95538855,2528.2,2527.7,2.727]
[1746964926526,0.39553885,2528.1,2527.5,3.5267]
[1746964926715,3.95536775,2528.3,2527.5,3.5267]
[1746964926919,3.95540023,2528.2,2527.5,3.5267]
[1746964927630,3.95530436,2528.3,2527.5,3.5267]
[1746964927833,14.00530436,2528.3,2527.5,3.5267]
[1746964928030,10.05,2528.3,2527.5,3.5267]
[1746964928217,10.05,2528.3,2527.7,0.7514]
[1746964930200,10.05,2528.3,2527.8,2.727]
[1746964930420,10.05,2528.3,2527.9,0.7514]
[1746964932733,0.2935315,2528.7,2527.9,8.7514]
[1746964932927,10.05,2528.8,2528.0,0.7777]
[1746964933244,10.05,2528.9,2528.1,0.7777]
[1746964933409,10.05,2528.9,2528.1,0.81725405]
[1746964933610,10.05,2528.9,2528.1,0.7777]
[1746964933812,10.05,2528.9,2528.2,2.727]
[1746964934023,10.05,2528.9,2528.3,0.7777]
[1746964934435,11.45040534,2528.9,2528.3,0.7777]
[1746964934618,11.45040534,2528.9,2528.4,2.727]
[1746964934824,3.95453122,2528.8,2528.4,2.727]
[1746964935143,3.95444479,2528.8,2528.3,0.7777]
[1746964935325,15.40474316,2528.9,2528.3,0.7777]
[1746964935326,15.40474523,2528.9,2528.3,0.7777]
[1746964935667,1.56983256,2528.8,2528.3,0.7777]
[1746964935942,3.95470219,2528.7,2528.3,3.5047]
[1746964936143,3.95475769,2528.6,2528.3,0.7777]
[1746964936352,6.30173112,2528.8,2528.3,0.7777]
[1746964936509,3.95460117,2528.7,2528.3,0.7777]
[1746964936704,1.02563323,2528.6,2528.3,0.7777]
[1746964936906,3.95471395,2528.7,2528.3,0.7777]
[1746964937432,3.95477025,2528.6,2528.3,0.7777]
[1746964937626,3.9547075,2528.7,2528.3,0.7777]
[1746964938722,3.95485862,2528.6,2528.3,0.7777]
[1746964940454,3.9546966,2528.7,2528.3,0.7777]
[1746964940614,4.98048519,2528.6,2528.3,0.7777]
[1746964940815,1.02563758,2528.6,2528.3,0.7777]
[1746964941153,18.6,2528.5,2527.7,2.727]
[1746964941454,3.95583595,2528.0,2527.5,0.7978]
[1746964941619,8.0,2528.0,2527.5,0.7978]
[1746964941811,0.7678,2528.2,2527.5,0.7978]
[1746964942012,8.0,2528.3,2527.6,0.7978]
[1746964942241,18.05,2528.5,2527.6,0.7978]
[1746964942643,22.00491609,2528.5,2527.6,0.7978]
[1746964942856,3.9551559,2528.4,2527.6,0.7978]
[1746964943020,3.9550704,2528.4,2527.6,0.7978]
[1746964943210,2.94507971,2528.4,2527.6,0.7978]
[1746964943959,6.90015324,2528.4,2527.6,0.7978]
[1746964944254,2.94507971,2528.4,2527.6,0.7978]
[1746964944618,6.90018078,2528.4,2527.6,0.7978]
[1746964944952,2.94507971,2528.4,2527.6,0.7978]
[1746964945151,2.94507971,2528.4,2527.7,0.8315]
[1746964945449,3.95526083,2528.3,2527.7,0.8315]
[1746964945646,3.95522683,2528.3,2527.7,0.8315]
[1746964945845,2.94507971,2528.4,2527.5,2.723]
[1746964945846,3.95553973,2528.1,2527.5,2.723]
[1746964946027,4.78673973,2528.1,2527.5,3.5545]
[1746964946230,1.8792233,2528.0,2527.5,3.5545]
[1746964947346,3.95594311,2527.9,2527.5,0.8315]
[1746964948827,3.95608154,2527.8,2527.4,2.723]
[1746964949022,8.55706165,2528.0,2527.4,2.723]
[1746964949352,3.95603501,2527.8,2527.4,2.723]
[1746964949554,1.73762617,2527.9,2527.4,2.723]
[1746964950637,5.69352688,2527.9,2527.4,2.723]
[1746964950961,5.69350032,2527.9,2527.4,2.723]
[1746964951758,15.74350032,2527.9,2527.4,2.723]
[1746964951961,5.53860693,2527.8,2527.4,2.723]
[1746964952164,1.5825842,2527.8,2527.4,2.723]
[1746964954951,10.05,2528.4,2527.5,0.86866806]
[1746964956267,10.05,2528.4,2527.6,0.8291]
[1746964960771,3.95491773,2528.5,2527.6,0.8291]
[1746964961269,14.00483883,2528.6,2527.6,0.8291]
[1746964961474,10.05,2528.6,2527.6,0.8291]
[1746964961671,14.00478179,2528.6,2527.6,0.8291]
[1746964961846,16.15416059,2528.6,2527.8,0.8239]
[1746964962175,12.1993788,2528.6,2527.8,0.8239]
[1746964962979,10.05,2528.6,2527.8,0.86345833]
[1746964963973,3.95461184,2528.7,2527.8,0.86345833]
[1746964963974,10.05,2528.7,2527.8,0.86345833]
[1746964964180,0.19615818,2529.7,2527.8,0.86345833]
[1746964964181,10.05,2529.6,2528.2,0.7803]
[1746964964362,10.05,2529.6,2527.9,3.27]
[1746964964363,10.05,2529.9,2528.6,0.7803]
[1746964964569,8.0,2530.1,2528.8,0.7803]
[1746964964766,3.9530379,2529.7,2529.0,0.7803]
[1746964964968,3.9530379,2529.7,2529.1,2.723]
[1746964965146,11.95292344,2529.8,2528.9,0.7842]
[1746964965475,1.19529234,2529.7,2529.1,0.7842]
[1746964966283,8.0,2529.6,2529.1,0.7842]
[1746964966883,10.05,2530.0,2529.2,0.03953946]
[1746964967188,10.05,2530.0,2529.3,0.7842]
[1746964967189,8.0,2529.9,2529.3,0.7842]
[1746964967359,3.95333133,2529.6,2529.3,3.5072]
[1746964967580,0.39533313,2529.5,2529.3,0.7842]
[1746964968147,8.0,2529.4,2529.0,2.723]
[1746964968555,8.0,2529.2,2528.7,3.5386]
[1746964970548,11.9536277,2529.4,2528.7,3.5386]
[1746964970750,8.0,2529.2,2528.7,3.5386]
[1746964971480,3.95393464,2529.2,2528.7,3.5386]
[1746964971782,2.23989608,2529.3,2528.7,3.5386]
[1746964971965,8.0,2529.4,2528.8,0.85514603]
[1746964973151,8.0,2529.4,2528.8,0.8156]
[1746964973500,10.5956694,2529.4,2528.8,0.8156]
[1746964973650,10.5956694,2529.4,2528.2,0.8156]
[1746964973651,8.0,2529.0,2528.2,0.8156]
[1746964974252,6.67205306,2529.1,2528.2,0.8156]
[1746964974889,2.718,2529.1,2528.2,0.85514974]
[1746964975188,18.05,2529.3,2528.2,0.85514974]
[1746964975374,2.717,2529.2,2528.4,0.8156]
[1746964975575,2.717,2529.2,2528.4,0.85514583]
[1746964975947,8.0,2529.4,2528.4,0.85514583]
[1746964976172,8.0,2529.4,2528.4,2.717]
[1746964976371,8.0,2529.4,2528.5,0.8156]
[1746964976574,8.0,2529.4,2528.7,0.8156]
[1746964976888,2.717,2529.6,2528.9,0.8156]
[1746964977183,3.95279698,2529.9,2528.9,0.8156]
[1746964977487,2.717,2529.9,2529.0,0.85513787]
[1746964977788,8.0,2529.8,2529.0,0.85513787]
[1746964978170,2.717,2529.9,2529.0,0.85513787]
[1746964978375,3.95256955,2530.0,2529.0,0.85513787]
[1746964978576,1.40025696,2529.9,2529.2,0.7902]
[1746964978778,14.00241626,2530.1,2529.2,0.7902]
[1746964979080,3.95277112,2529.9,2529.2,0.7902]
[1746964979288,3.95311758,2529.7,2529.2,0.7902]
[1746964979455,3.95278806,2529.9,2529.2,0.7902]
[1746964979654,16.719462,2530.1,2529.2,0.7902]
[1746964979855,12.767,2530.1,2529.2,0.7902]
[1746964980099,14.46911122,2530.1,2529.2,0.7902]
[1746964980385,18.42160406,2530.1,2529.2,0.82973569]
[1746964980586,14.46911122,2530.1,2529.2,0.7902]
[1746964980787,18.42162769,2530.1,2529.2,0.7902]
[1746964980958,12.767,2530.1,2529.2,0.7902]
[1746964981155,16.71948763,2530.1,2529.2,0.7902]
[1746964981357,3.95305281,2529.7,2529.2,0.7902]
[1746964982287,3.95321431,2529.6,2529.2,0.7902]
[1746964982495,3.95352701,2529.4,2528.7,0.7902]
[1746964982663,2.716,2529.5,2528.8,2.717]
[1746964982869,2.716,2529.5,2528.9,0.8094]
[1746964983070,6.66943948,2529.5,2528.9,0.8094]
[1746964983272,3.9536058,2529.4,2528.9,0.8094]
[1746964983696,8.0,2529.3,2527.7,0.8094]
[1746964983872,15.8843431,2529.2,2528.2,0.8094]
[1746964984076,3.95404836,2529.1,2528.2,0.8094]
[1746964984381,3.95417426,2529.0,2528.3,2.717]
[1746964984570,12.766,2528.9,2528.2,0.8094]
[1746964985303,16.7203343,2528.9,2528.2,0.8094]
[1746964985660,12.766,2528.9,2528.2,0.8094]
[1746964986804,10.05,2528.9,2528.2,0.8094]
[1746964987885,10.05,2529.1,2528.4,0.8174]
[1746964988402,10.05,2529.1,2528.5,3.5344]
[1746964988985,10.05,2529.1,2528.6,0.8174]
[1746964989186,10.05,2529.1,2528.8,0.8174]
[1746964989777,2.715,2529.6,2528.8,0.8174]
[1746964989972,6.6682042,2529.6,2528.8,0.8174]
[1746964990402,2.715,2529.6,2528.8,0.8174]
[1746964991022,3.95287081,2529.9,2528.8,0.8174]
[1746964991309,3.95305379,2529.7,2528.9,3.5344]
[1746964991518,4.34811029,2529.9,2529.0,0.8174]
[1746964991720,3.95288736,2529.8,2529.0,0.8174]
[1746964992291,4.348063,2529.9,2529.0,0.8174]
[1746964992502,3.95320984,2529.6,2529.0,0.8174]
[1746964992710,1.2627063,2529.8,2529.0,0.8174]
[1746964993015,3.95326239,2529.6,2529.0,3.5344]
[1746964993406,3.95345131,2529.5,2529.0,3.5344]
[1746964993603,3.95358266,2529.4,2529.0,0.8174]
[1746964994022,2.715,2529.6,2529.0,0.8174]
[1746964994522,6.66828822,2529.6,2529.0,0.8174]
[1746964994724,2.715,2529.6,2529.0,1.17084]
[1746964995219,6.66830573,2529.6,2529.0,1.17084]
[1746964995430,6.66830573,2529.6,2529.0,0.8174]
[1746964995987,3.95337051,2529.5,2529.0,0.8174]
[1746964996337,2.715,2529.6,2529.0,0.8174]
[1746964996690,3.95340677,2529.5,2529.0,0.8174]
[1746964997521,3.95356052,2529.4,2529.0,0.8174]
[1746964997936,3.95341474,2529.5,2529.0,0.8174]
[1746965000133,10.05,2529.8,2529.0,0.35344]
[1746965000291,10.05,2529.8,2529.1,0.79774143]